[Event "Titled Tuesday Blitz January 03 Late 2023"]
[White "Ibadov, Dashgyn"]
[Black "Rian, Kapriaga"]
[WhiteFideId "24107514"]
[BlackFideId "7103263"]
[WhiteElo "2391"]
[BlackElo "2089"]
[Result "0-1"]
[Round "06"]
[TimeControl "180+2"]
[Date "2023.01.03"]
[WhiteClock "0:00:02"]
[BlackClock "0:00:19"]

1. d4 {[%clk 0:03:00]}  Nf6 {[%clk 0:02:59]} 2. c4 {[%clk 0:03:01]}  e6 {[%clk 0:02:59]} 3. Nf3 {[%clk 0:03:01]}  d5 {[%clk 0:02:59]} 4. Nc3 {[%clk 0:02:59]}  Be7 {[%clk 0:02:59]} 5. Bg5 {[%clk 0:02:58]}  h6 {[%clk 0:02:57]} 6. Bh4 {[%clk 0:02:55]}  O-O {[%clk 0:02:57]} 7. e3 {[%clk 0:02:54]}  Ne4 {[%clk 0:02:57]} 8. Bxe7 {[%clk 0:02:45]}  Qxe7 {[%clk 0:02:55]} 9. Nxe4 {[%clk 0:02:38]}  dxe4 {[%clk 0:02:55]} 10. Nd2 {[%clk 0:02:39]}  f5 {[%clk 0:02:53]} 11. f3 {[%clk 0:02:36]}  exf3 {[%clk 0:02:45]} 12. Qxf3 {[%clk 0:02:15]}  Nd7 {[%clk 0:02:38]} 13. O-O-O {[%clk 0:01:54]}  e5 {[%clk 0:02:35]} 14. Kb1 {[%clk 0:01:49]}  a5 {[%clk 0:02:15]} 15. c5 {[%clk 0:01:48]}  Nf6 {[%clk 0:02:02]} 16. Bc4+ {[%clk 0:01:47]}  Kh8 {[%clk 0:02:01]} 17. Qg3 {[%clk 0:01:29]}  f4 {[%clk 0:01:58]} 18. exf4 {[%clk 0:01:22]}  exd4 {[%clk 0:01:55]} 19. Nf3 {[%clk 0:01:15]}  Qxc5 {[%clk 0:01:48]} 20. Ne5 {[%clk 0:01:13]}  Bf5+ {[%clk 0:01:46]} 21. Bd3 {[%clk 0:01:08]}  Ne4 {[%clk 0:01:34]} 22. Qe1 {[%clk 0:00:46]}  Nd6 {[%clk 0:01:28]} 23. g4 {[%clk 0:00:33]}  Bxd3+ {[%clk 0:01:25]} 24. Rxd3 {[%clk 0:00:33]}  Rae8 {[%clk 0:01:17]} 25. g5 {[%clk 0:00:27]}  Rxf4 {[%clk 0:01:03]} 26. Ng6+ {[%clk 0:00:14]}  Kh7 {[%clk 0:01:02]} 27. Nxf4 {[%clk 0:00:14]}  Rxe1+ {[%clk 0:01:02]} 28. Rxe1 {[%clk 0:00:15]}  Qxg5 {[%clk 0:01:01]} 29. Ne6 {[%clk 0:00:12]}  Qf5 {[%clk 0:00:59]} 30. Kc2 {[%clk 0:00:09]}  c5 {[%clk 0:00:56]} 31. Kd2 {[%clk 0:00:05]}  Nc4+ {[%clk 0:00:55]} 32. Kc2 {[%clk 0:00:03]}  Ne5 {[%clk 0:00:51]} 33. Nxc5 {[%clk 0:00:02]}  Nxd3 {[%clk 0:00:48]} 34. Nxd3 {[%clk 0:00:03]}  b6 {[%clk 0:00:46]} 35. Re5 {[%clk 0:00:02]}  Qh3 {[%clk 0:00:44]} 36. Re2 {[%clk 0:00:02]}  Qf3 {[%clk 0:00:41]} 37. Rf2 {[%clk 0:00:02]}  Qe4 {[%clk 0:00:41]} 38. Kd2 {[%clk 0:00:01]}  h5 {[%clk 0:00:39]} 39. Rf4 {[%clk 0:00:01]}  Qd5 {[%clk 0:00:36]} 40. a3 {[%clk 0:00:02]}  g6 {[%clk 0:00:34]} 41. Rf2 {[%clk 0:00:01]}  Kh6 {[%clk 0:00:34]} 42. Kc2 {[%clk 0:00:02]}  h4 {[%clk 0:00:33]} 43. Kd2 {[%clk 0:00:02]}  g5 {[%clk 0:00:33]} 44. Rf6+ {[%clk 0:00:02]}  Kh5 {[%clk 0:00:32]} 45. Rf2 {[%clk 0:00:03]}  Qd6 {[%clk 0:00:27]} 46. Re2 {[%clk 0:00:03]}  b5 {[%clk 0:00:19]} 47. Rf2 {[%clk 0:00:03]}  b4 {[%clk 0:00:19]} 48. axb4 {[%clk 0:00:03]}  axb4 {[%clk 0:00:19]} 49. Re2 {[%clk 0:00:03]}  b3 {[%clk 0:00:19]} 50. Rf2 {[%clk 0:00:02]}  Qc7 {[%clk 0:00:19]} 0-1


[Site "https://www.chess.com"]

[Event "Titled Tuesday Blitz January 03 Late 2023"]
[White "Pesotskiy, Mikhail"]
[Black "Van den Dikkenberg, Erik"]
[WhiteFideId "34164453"]
[BlackFideId "1005880"]
[WhiteElo "2153"]
[BlackElo "2091"]
[Result "0-1"]
[Round "06"]
[TimeControl "180+2"]
[Date "2023.01.03"]
[WhiteClock "0:00:03"]
[BlackClock "0:00:55"]

1. d4 {[%clk 0:03:00]}  Nf6 {[%clk 0:02:59]} 2. c4 {[%clk 0:03:01]}  c5 {[%clk 0:02:58]} 3. d5 {[%clk 0:03:00]}  b5 {[%clk 0:02:59]} 4. cxb5 {[%clk 0:03:01]}  a6 {[%clk 0:02:59]} 5. bxa6 {[%clk 0:03:02]}  g6 {[%clk 0:02:59]} 6. Nc3 {[%clk 0:03:03]}  Bg7 {[%clk 0:02:59]} 7. e4 {[%clk 0:03:03]}  O-O {[%clk 0:03:00]} 8. Nf3 {[%clk 0:03:02]}  d6 {[%clk 0:03:00]} 9. Be2 {[%clk 0:02:57]}  Qa5 {[%clk 0:02:58]} 10. Bd2 {[%clk 0:02:57]}  Bxa6 {[%clk 0:02:58]} 11. O-O {[%clk 0:02:58]}  Nbd7 {[%clk 0:02:54]} 12. a4 {[%clk 0:02:49]}  Qb4 {[%clk 0:02:49]} 13. Bxa6 {[%clk 0:02:44]}  Rxa6 {[%clk 0:02:47]} 14. Qe2 {[%clk 0:02:45]}  Raa8 {[%clk 0:02:16]} 15. Rab1 {[%clk 0:02:38]}  Rfb8 {[%clk 0:02:12]} 16. Rfe1 {[%clk 0:02:23]}  Qb3 {[%clk 0:02:09]} 17. e5 {[%clk 0:02:09]}  Nxd5 {[%clk 0:01:49]} 18. e6 {[%clk 0:01:46]}  Ne5 {[%clk 0:01:29]} 19. Nxe5 {[%clk 0:01:38]}  Bxe5 {[%clk 0:01:29]} 20. exf7+ {[%clk 0:01:28]}  Kxf7 {[%clk 0:01:28]} 21. Qf3+ {[%clk 0:01:25]}  Nf6 {[%clk 0:01:21]} 22. Bf4 {[%clk 0:01:14]}  Bxc3 {[%clk 0:01:16]} 23. Re3 {[%clk 0:01:02]}  Qc2 {[%clk 0:01:09]} 24. Rf1 {[%clk 0:00:10]}  Bd4 {[%clk 0:01:04]} 25. Re2 {[%clk 0:00:11]}  Qf5 {[%clk 0:00:59]} 26. Be3 {[%clk 0:00:01]}  Qxf3 {[%clk 0:00:58]} 27. gxf3 {[%clk 0:00:02]}  Bxe3 {[%clk 0:00:57]} 28. fxe3 {[%clk 0:00:02]}  Rxa4 {[%clk 0:00:56]} 29. e4 {[%clk 0:00:03]}  e5 {[%clk 0:00:55]} 30. Rff2 {[%clk 0:00:03]} 0-1


[Site "https://www.chess.com"]

[Event "Titled Tuesday Blitz January 03 Late 2023"]
[White "Yeritsyan, Hayk"]
[Black "Kovacs, Klara"]
[WhiteFideId "13307320"]
[BlackFideId "733210"]
[WhiteElo "2241"]
[BlackElo "2121"]
[Result "1-0"]
[Round "06"]
[TimeControl "180+2"]
[Date "2023.01.03"]
[WhiteClock "0:00:38"]
[BlackClock "0:00:20"]

1. d4 {[%clk 0:02:54]}  e6 {[%clk 0:02:12]} 2. Nf3 {[%clk 0:02:32]}  Nf6 {[%clk 0:02:13]} 3. e3 {[%clk 0:02:31]}  c5 {[%clk 0:02:04]} 4. Bd3 {[%clk 0:02:31]}  b6 {[%clk 0:02:01]} 5. c3 {[%clk 0:02:30]}  Bb7 {[%clk 0:02:01]} 6. Nbd2 {[%clk 0:02:30]}  cxd4 {[%clk 0:02:02]} 7. exd4 {[%clk 0:02:30]}  Be7 {[%clk 0:02:03]} 8. O-O {[%clk 0:02:30]}  O-O {[%clk 0:02:03]} 9. Qe2 {[%clk 0:02:31]}  d6 {[%clk 0:02:04]} 10. Re1 {[%clk 0:02:31]}  Nbd7 {[%clk 0:02:05]} 11. Ng5 {[%clk 0:02:31]}  h6 {[%clk 0:02:04]} 12. Nxe6 {[%clk 0:02:30]}  fxe6 {[%clk 0:01:59]} 13. Qxe6+ {[%clk 0:02:30]}  Rf7 {[%clk 0:01:54]} 14. Bg6 {[%clk 0:02:21]}  Bd5 {[%clk 0:01:51]} 15. Bxf7+ {[%clk 0:02:20]}  Kf8 {[%clk 0:01:52]} 16. Qxd5 {[%clk 0:02:09]}  Nxd5 {[%clk 0:01:51]} 17. Bxd5 {[%clk 0:02:10]}  Nf6 {[%clk 0:01:50]} 18. Bxa8 {[%clk 0:02:10]}  Qxa8 {[%clk 0:01:50]} 19. Nf3 {[%clk 0:02:10]}  Qd5 {[%clk 0:01:47]} 20. Bf4 {[%clk 0:01:59]}  Nh5 {[%clk 0:01:45]} 21. Bg3 {[%clk 0:01:59]}  Nxg3 {[%clk 0:01:45]} 22. hxg3 {[%clk 0:01:59]}  Qb5 {[%clk 0:01:44]} 23. Rab1 {[%clk 0:01:57]}  Qc4 {[%clk 0:01:43]} 24. a3 {[%clk 0:01:57]}  a5 {[%clk 0:01:42]} 25. Red1 {[%clk 0:01:52]}  Bf6 {[%clk 0:01:42]} 26. Rd2 {[%clk 0:01:52]}  d5 {[%clk 0:01:42]} 27. Re1 {[%clk 0:01:52]}  a4 {[%clk 0:01:42]} 28. Rde2 {[%clk 0:01:52]}  Qb3 {[%clk 0:01:38]} 29. Ne5 {[%clk 0:01:50]}  Kg8 {[%clk 0:01:37]} 30. Nd3 {[%clk 0:01:42]}  Qb5 {[%clk 0:01:32]} 31. Nb4 {[%clk 0:01:41]}  Qc4 {[%clk 0:01:32]} 32. Re3 {[%clk 0:01:36]}  Qb3 {[%clk 0:01:31]} 33. R3e2 {[%clk 0:01:36]}  Kh7 {[%clk 0:01:27]} 34. Rd2 {[%clk 0:01:28]}  Kg6 {[%clk 0:01:23]} 35. Nd3 {[%clk 0:01:26]}  Kh7 {[%clk 0:01:19]} 36. Nf4 {[%clk 0:01:25]}  Qb5 {[%clk 0:01:18]} 37. Rde2 {[%clk 0:01:23]}  Qb3 {[%clk 0:01:17]} 38. f3 {[%clk 0:01:19]}  Bg5 {[%clk 0:01:15]} 39. Kf2 {[%clk 0:01:14]}  Qb5 {[%clk 0:01:14]} 40. Rd1 {[%clk 0:01:10]}  Qc6 {[%clk 0:01:10]} 41. Re5 {[%clk 0:01:06]}  Bxf4 {[%clk 0:01:00]} 42. gxf4 {[%clk 0:01:07]}  Qf6 {[%clk 0:01:00]} 43. g3 {[%clk 0:01:02]}  Qg6 {[%clk 0:01:00]} 44. Rd2 {[%clk 0:01:00]}  Qf7 {[%clk 0:00:53]} 45. Rde2 {[%clk 0:00:55]}  Qd7 {[%clk 0:00:45]} 46. f5 {[%clk 0:00:52]}  Qc6 {[%clk 0:00:42]} 47. g4 {[%clk 0:00:52]}  Qf6 {[%clk 0:00:40]} 48. Kg2 {[%clk 0:00:51]}  Qf7 {[%clk 0:00:39]} 49. Re6 {[%clk 0:00:51]}  Qf8 {[%clk 0:00:26]} 50. Re7 {[%clk 0:00:41]}  Qf6 {[%clk 0:00:24]} 51. R2e6 {[%clk 0:00:41]}  Qg5 {[%clk 0:00:25]} 52. f6 {[%clk 0:00:40]}  Qd2+ {[%clk 0:00:25]} 53. Re2 {[%clk 0:00:40]}  Qf4 {[%clk 0:00:20]} 54. Rxg7+ {[%clk 0:00:38]} 1-0


[Site "https://www.chess.com"]

[Event "Titled Tuesday Blitz January 03 Late 2023"]
[White "Curtis, John"]
[Black "Erdogdu, Mert"]
[WhiteFideId "3200256"]
[BlackFideId "6301495"]
[WhiteElo "2292"]
[BlackElo "2413"]
[Result "0-1"]
[Round "06"]
[TimeControl "180+2"]
[Date "2023.01.03"]
[WhiteClock "0:00:01"]
[BlackClock "0:00:05"]

1. e4 {[%clk 0:03:00]}  c5 {[%clk 0:02:59]} 2. Nf3 {[%clk 0:03:00]}  d6 {[%clk 0:03:00]} 3. d4 {[%clk 0:03:00]}  cxd4 {[%clk 0:03:00]} 4. Nxd4 {[%clk 0:03:00]}  Nf6 {[%clk 0:03:01]} 5. Nc3 {[%clk 0:03:00]}  a6 {[%clk 0:03:02]} 6. Bg5 {[%clk 0:02:59]}  e6 {[%clk 0:03:02]} 7. Qf3 {[%clk 0:02:59]}  Be7 {[%clk 0:02:57]} 8. O-O-O {[%clk 0:02:58]}  Qa5 {[%clk 0:02:54]} 9. Bh4 {[%clk 0:02:47]}  O-O {[%clk 0:02:52]} 10. Kb1 {[%clk 0:02:47]}  Nc6 {[%clk 0:02:42]} 11. Nxc6 {[%clk 0:02:37]}  bxc6 {[%clk 0:02:43]} 12. Bc4 {[%clk 0:02:27]}  d5 {[%clk 0:02:34]} 13. Bb3 {[%clk 0:02:22]}  Qb4 {[%clk 0:01:59]} 14. a3 {[%clk 0:01:41]}  Qc5 {[%clk 0:01:52]} 15. Rhe1 {[%clk 0:01:24]}  Rb8 {[%clk 0:01:37]} 16. Na4 {[%clk 0:01:15]}  Qa7 {[%clk 0:01:29]} 17. e5 {[%clk 0:01:03]}  Ne4 {[%clk 0:01:28]} 18. Bxe7 {[%clk 0:01:01]}  Qxe7 {[%clk 0:01:29]} 19. Qe3 {[%clk 0:01:00]}  c5 {[%clk 0:01:05]} 20. f3 {[%clk 0:01:00]}  c4 {[%clk 0:01:04]} 21. fxe4 {[%clk 0:00:46]}  cxb3 {[%clk 0:01:03]} 22. c3 {[%clk 0:00:41]}  dxe4 {[%clk 0:00:55]} 23. Nc5 {[%clk 0:00:39]}  Rb5 {[%clk 0:00:48]} 24. Rd6 {[%clk 0:00:37]}  Qc7 {[%clk 0:00:44]} 25. Nxe4 {[%clk 0:00:30]}  Rxe5 {[%clk 0:00:43]} 26. Qd4 {[%clk 0:00:31]}  Rd5 {[%clk 0:00:28]} 27. Rxd5 {[%clk 0:00:30]}  exd5 {[%clk 0:00:29]} 28. Ng5 {[%clk 0:00:22]}  Bf5+ {[%clk 0:00:23]} 29. Ka1 {[%clk 0:00:22]}  Qxh2 {[%clk 0:00:23]} 30. Nf3 {[%clk 0:00:13]}  Qg3 {[%clk 0:00:15]} 31. Rd1 {[%clk 0:00:08]}  Be4 {[%clk 0:00:13]} 32. Qd2 {[%clk 0:00:08]}  h6 {[%clk 0:00:11]} 33. Nd4 {[%clk 0:00:07]}  Rb8 {[%clk 0:00:09]} 34. Nc6 {[%clk 0:00:07]}  Rb6 {[%clk 0:00:09]} 35. Ne7+ {[%clk 0:00:07]}  Kh7 {[%clk 0:00:09]} 36. Nxd5 {[%clk 0:00:06]}  Rd6 {[%clk 0:00:08]} 37. c4 {[%clk 0:00:06]}  Bc2 {[%clk 0:00:08]} 38. Re1 {[%clk 0:00:04]}  Re6 {[%clk 0:00:08]} 39. Rxe6 {[%clk 0:00:02]}  fxe6 {[%clk 0:00:09]} 40. Ne3 {[%clk 0:00:03]}  Qf4 {[%clk 0:00:07]} 41. Qe1 {[%clk 0:00:02]}  Bg6 {[%clk 0:00:04]} 42. g3 {[%clk 0:00:01]}  Qe4 {[%clk 0:00:05]} 0-1


[Site "https://www.chess.com"]

[Event "Titled Tuesday Blitz January 03 Late 2023"]
[White "Vega Gutierrez, Sabrina"]
[Black "Jarocka, Liwia"]
[WhiteFideId "2219026"]
[BlackFideId "21807558"]
[WhiteElo "2377"]
[BlackElo "2225"]
[Result "1-0"]
[Round "06"]
[TimeControl "180+2"]
[Date "2023.01.03"]
[WhiteClock "0:00:27"]
[BlackClock "0:00:39"]

1. e4 {[%clk 0:03:00]}  c5 {[%clk 0:02:25]} 2. Nf3 {[%clk 0:03:01]}  d6 {[%clk 0:02:25]} 3. d4 {[%clk 0:03:01]}  cxd4 {[%clk 0:02:26]} 4. Qxd4 {[%clk 0:03:02]}  Bd7 {[%clk 0:02:25]} 5. c4 {[%clk 0:03:01]}  Nc6 {[%clk 0:02:23]} 6. Qe3 {[%clk 0:03:01]}  Nf6 {[%clk 0:02:24]} 7. h3 {[%clk 0:03:01]}  g6 {[%clk 0:02:23]} 8. Be2 {[%clk 0:03:01]}  Bg7 {[%clk 0:02:22]} 9. O-O {[%clk 0:03:02]}  O-O {[%clk 0:02:21]} 10. Rd1 {[%clk 0:03:02]}  Qb6 {[%clk 0:02:20]} 11. Qxb6 {[%clk 0:02:54]}  axb6 {[%clk 0:02:21]} 12. Nc3 {[%clk 0:02:54]}  Be6 {[%clk 0:02:06]} 13. Ng5 {[%clk 0:02:27]}  Nd7 {[%clk 0:02:05]} 14. Nxe6 {[%clk 0:02:24]}  fxe6 {[%clk 0:02:04]} 15. Bg4 {[%clk 0:02:23]}  Nc5 {[%clk 0:01:57]} 16. Be3 {[%clk 0:02:06]}  Kf7 {[%clk 0:01:47]} 17. Rac1 {[%clk 0:01:30]}  h5 {[%clk 0:01:45]} 18. Bf3 {[%clk 0:01:25]}  Ne5 {[%clk 0:01:32]} 19. Be2 {[%clk 0:01:24]}  Nc6 {[%clk 0:01:28]} 20. a3 {[%clk 0:00:59]}  Bxc3 {[%clk 0:01:20]} 21. Rxc3 {[%clk 0:00:59]}  Nxe4 {[%clk 0:01:19]} 22. Rb3 {[%clk 0:00:57]}  Nc5 {[%clk 0:01:02]} 23. Rxb6 {[%clk 0:00:56]}  Rfb8 {[%clk 0:01:00]} 24. Bxc5 {[%clk 0:00:50]}  dxc5 {[%clk 0:00:59]} 25. Rd7 {[%clk 0:00:47]}  Nd4 {[%clk 0:00:48]} 26. Bd3 {[%clk 0:00:42]}  Ra7 {[%clk 0:00:47]} 27. Be4 {[%clk 0:00:40]}  Nf5 {[%clk 0:00:40]} 28. Rc7 {[%clk 0:00:27]}  Nd6 {[%clk 0:00:39]} 29. Rxd6 {[%clk 0:00:27]} 1-0


[Site "https://www.chess.com"]

[Event "Titled Tuesday Blitz January 03 Late 2023"]
[White "Suvorov, Luca"]
[Black "Gomes, Luiz Alexandre de Souza"]
[WhiteFideId "12977071"]
[BlackFideId "2102790"]
[WhiteElo "2310"]
[BlackElo "2254"]
[Result "0-1"]
[Round "06"]
[TimeControl "180+2"]
[Date "2023.01.03"]
[WhiteClock "0:00:10"]
[BlackClock "0:00:10"]

1. d4 {[%clk 0:03:00]}  Nf6 {[%clk 0:02:59]} 2. c4 {[%clk 0:02:59]}  c5 {[%clk 0:02:59]} 3. d5 {[%clk 0:02:59]}  b5 {[%clk 0:02:59]} 4. Qc2 {[%clk 0:02:59]}  d6 {[%clk 0:02:59]} 5. e4 {[%clk 0:02:57]}  g6 {[%clk 0:03:00]} 6. cxb5 {[%clk 0:02:49]}  a6 {[%clk 0:03:00]} 7. Nc3 {[%clk 0:02:44]}  Bg7 {[%clk 0:02:59]} 8. a4 {[%clk 0:02:27]}  O-O {[%clk 0:02:59]} 9. f3 {[%clk 0:02:27]}  e6 {[%clk 0:02:57]} 10. dxe6 {[%clk 0:02:10]}  Bxe6 {[%clk 0:02:58]} 11. Bg5 {[%clk 0:01:58]}  Qa5 {[%clk 0:02:55]} 12. Ne2 {[%clk 0:01:37]}  d5 {[%clk 0:02:51]} 13. Bxf6 {[%clk 0:01:33]}  Bxf6 {[%clk 0:02:50]} 14. exd5 {[%clk 0:01:33]}  Bxd5 {[%clk 0:02:49]} 15. Rd1 {[%clk 0:01:30]}  Be6 {[%clk 0:02:47]} 16. Kf2 {[%clk 0:01:27]}  axb5 {[%clk 0:02:40]} 17. axb5 {[%clk 0:01:26]}  Nd7 {[%clk 0:02:39]} 18. h4 {[%clk 0:01:17]}  Ne5 {[%clk 0:02:27]} 19. Nf4 {[%clk 0:00:45]}  Bf5 {[%clk 0:02:24]} 20. Ne4 {[%clk 0:00:37]}  Bg7 {[%clk 0:01:57]} 21. Nd5 {[%clk 0:00:35]}  Bxe4 {[%clk 0:01:13]} 22. Qxe4 {[%clk 0:00:36]}  Rfe8 {[%clk 0:01:11]} 23. Be2 {[%clk 0:00:22]}  c4 {[%clk 0:01:06]} 24. Rhe1 {[%clk 0:00:18]}  Nd3+ {[%clk 0:01:04]} 25. Bxd3 {[%clk 0:00:19]}  Rxe4 {[%clk 0:01:03]} 26. Bxe4 {[%clk 0:00:20]}  Rb8 {[%clk 0:00:54]} 27. b6 {[%clk 0:00:20]}  Bxb2 {[%clk 0:00:53]} 28. Kf1 {[%clk 0:00:16]}  c3 {[%clk 0:00:49]} 29. Re2 {[%clk 0:00:14]}  Kg7 {[%clk 0:00:45]} 30. h5 {[%clk 0:00:13]}  gxh5 {[%clk 0:00:36]} 31. Ne3 {[%clk 0:00:12]}  Qxb6 {[%clk 0:00:26]} 32. Nf5+ {[%clk 0:00:12]}  Kf8 {[%clk 0:00:25]} 33. Rd6 {[%clk 0:00:08]}  Qb5 {[%clk 0:00:20]} 34. Rd5 {[%clk 0:00:08]}  Qc4 {[%clk 0:00:19]} 35. Rd4 {[%clk 0:00:08]}  Qb3 {[%clk 0:00:18]} 36. Bc2 {[%clk 0:00:07]}  Qb6 {[%clk 0:00:17]} 37. Rde4 {[%clk 0:00:06]}  Qf6 {[%clk 0:00:16]} 38. Re5 {[%clk 0:00:04]}  h4 {[%clk 0:00:16]} 39. Ne3 {[%clk 0:00:03]}  h3 {[%clk 0:00:16]} 40. Ng4 {[%clk 0:00:03]}  hxg2+ {[%clk 0:00:16]} 41. Kxg2 {[%clk 0:00:04]}  Qh4 {[%clk 0:00:15]} 42. Rf5 {[%clk 0:00:04]}  Rd8 {[%clk 0:00:14]} 43. Ne5 {[%clk 0:00:04]}  Rd2 {[%clk 0:00:13]} 44. Rxd2 {[%clk 0:00:05]}  cxd2 {[%clk 0:00:13]} 45. Rxf7+ {[%clk 0:00:06]}  Kg8 {[%clk 0:00:13]} 46. Bb3 {[%clk 0:00:06]}  Kh8 {[%clk 0:00:10]} 47. Rf8+ {[%clk 0:00:05]}  Kg7 {[%clk 0:00:10]} 48. Rf7+ {[%clk 0:00:06]}  Kh6 {[%clk 0:00:11]} 49. Ng4+ {[%clk 0:00:06]}  Kg6 {[%clk 0:00:11]} 50. Rf6+ {[%clk 0:00:05]}  Bxf6 {[%clk 0:00:10]} 51. Nxf6 {[%clk 0:00:06]}  Kxf6 {[%clk 0:00:10]} 52. Bc2 {[%clk 0:00:06]}  Qe1 {[%clk 0:00:10]} 53. Kh3 {[%clk 0:00:06]}  d1=Q {[%clk 0:00:09]} 54. Bxd1 {[%clk 0:00:07]}  Qxd1 {[%clk 0:00:09]} 55. Kg3 {[%clk 0:00:08]}  Qg1+ {[%clk 0:00:09]} 56. Kf4 {[%clk 0:00:08]}  Qg5+ {[%clk 0:00:09]} 57. Ke4 {[%clk 0:00:09]}  h5 {[%clk 0:00:10]} 58. f4 {[%clk 0:00:09]}  Qf5+ {[%clk 0:00:10]} 59. Kf3 {[%clk 0:00:09]}  h4 {[%clk 0:00:10]} 60. Ke3 {[%clk 0:00:10]}  Qg4 {[%clk 0:00:10]} 0-1


[Site "https://www.chess.com"]

[Event "Titled Tuesday Blitz January 03 Late 2023"]
[White "qiaohu_henry"]
[Black "Novikov, Evgenij"]
[BlackFideId "4125380"]
[WhiteElo "2253"]
[BlackElo "2276"]
[Result "0-1"]
[Round "06"]
[TimeControl "180+2"]
[Date "2023.01.03"]
[WhiteClock "0:00:02"]
[BlackClock "0:00:23"]

1. d4 {[%clk 0:03:00]}  Nf6 {[%clk 0:02:58]} 2. Bf4 {[%clk 0:03:00]}  d5 {[%clk 0:02:57]} 3. e3 {[%clk 0:02:59]}  c5 {[%clk 0:02:57]} 4. c3 {[%clk 0:03:00]}  Nc6 {[%clk 0:02:57]} 5. Nd2 {[%clk 0:03:00]}  e6 {[%clk 0:02:55]} 6. h3 {[%clk 0:02:59]}  Bd6 {[%clk 0:02:55]} 7. dxc5 {[%clk 0:02:52]}  Bxc5 {[%clk 0:02:49]} 8. Ngf3 {[%clk 0:02:52]}  O-O {[%clk 0:02:48]} 9. Ne5 {[%clk 0:02:40]}  Nd7 {[%clk 0:02:42]} 10. Nd3 {[%clk 0:02:29]}  Be7 {[%clk 0:02:39]} 11. Be2 {[%clk 0:02:23]}  e5 {[%clk 0:02:38]} 12. Bh2 {[%clk 0:02:24]}  Re8 {[%clk 0:02:29]} 13. O-O {[%clk 0:02:23]}  Bf8 {[%clk 0:02:25]} 14. c4 {[%clk 0:02:16]}  Nf6 {[%clk 0:02:16]} 15. cxd5 {[%clk 0:02:12]}  Qxd5 {[%clk 0:02:14]} 16. Nb3 {[%clk 0:02:02]}  Bf5 {[%clk 0:02:10]} 17. Ne1 {[%clk 0:01:32]}  Qe6 {[%clk 0:02:01]} 18. Nf3 {[%clk 0:01:27]}  Red8 {[%clk 0:01:59]} 19. Qc1 {[%clk 0:01:20]}  Rac8 {[%clk 0:01:59]} 20. Nc5 {[%clk 0:01:07]}  Qe7 {[%clk 0:01:32]} 21. Nb3 {[%clk 0:00:40]}  Nb4 {[%clk 0:01:21]} 22. Qe1 {[%clk 0:00:40]}  Nc2 {[%clk 0:01:11]} 23. Qa5 {[%clk 0:00:40]}  b6 {[%clk 0:01:10]} 24. Qxe5 {[%clk 0:00:37]}  Qxe5 {[%clk 0:01:07]} 25. Bxe5 {[%clk 0:00:35]}  Nxa1 {[%clk 0:01:07]} 26. Rxa1 {[%clk 0:00:35]}  Nd7 {[%clk 0:01:01]} 27. Bg3 {[%clk 0:00:30]}  Nc5 {[%clk 0:00:56]} 28. Nbd4 {[%clk 0:00:28]}  Bd3 {[%clk 0:00:54]} 29. Bd1 {[%clk 0:00:24]}  Ne4 {[%clk 0:00:53]} 30. Bh4 {[%clk 0:00:19]}  Rd5 {[%clk 0:00:41]} 31. Bb3 {[%clk 0:00:18]}  Bc4 {[%clk 0:00:37]} 32. Bc2 {[%clk 0:00:15]}  Nd6 {[%clk 0:00:32]} 33. b3 {[%clk 0:00:11]}  Ba6 {[%clk 0:00:31]} 34. Bd1 {[%clk 0:00:11]}  Ne4 {[%clk 0:00:30]} 35. a3 {[%clk 0:00:03]}  Nc3 {[%clk 0:00:29]} 36. b4 {[%clk 0:00:03]}  Nxd1 {[%clk 0:00:29]} 37. Rxd1 {[%clk 0:00:04]}  f6 {[%clk 0:00:27]} 38. a4 {[%clk 0:00:03]}  Bxb4 {[%clk 0:00:25]} 39. Rb1 {[%clk 0:00:03]}  Bc5 {[%clk 0:00:25]} 40. Bg3 {[%clk 0:00:03]}  Bd3 {[%clk 0:00:24]} 41. Rd1 {[%clk 0:00:02]}  Be4 {[%clk 0:00:23]} 42. Rb1 {[%clk 0:00:02]}  Rcd8 {[%clk 0:00:23]} 0-1


[Site "https://www.chess.com"]

[Event "Titled Tuesday Blitz January 03 Late 2023"]
[White "Mazurkiewicz, Michal"]
[Black "Broca Jimenez, Fernando"]
[WhiteFideId "1124943"]
[BlackFideId "5104742"]
[WhiteElo "2145"]
[BlackElo "2075"]
[Result "0-1"]
[Round "06"]
[TimeControl "180+2"]
[Date "2023.01.03"]
[WhiteClock "0:01:29"]
[BlackClock "0:00:13"]

1. e4 {[%clk 0:02:45]}  c5 {[%clk 0:02:58]} 2. Nf3 {[%clk 0:02:45]}  d6 {[%clk 0:02:58]} 3. g3 {[%clk 0:02:45]}  g6 {[%clk 0:02:58]} 4. Bg2 {[%clk 0:02:45]}  Bg7 {[%clk 0:02:58]} 5. O-O {[%clk 0:02:45]}  Nf6 {[%clk 0:02:56]} 6. d3 {[%clk 0:02:45]}  O-O {[%clk 0:02:55]} 7. Re1 {[%clk 0:02:45]}  Nc6 {[%clk 0:02:55]} 8. e5 {[%clk 0:02:45]}  dxe5 {[%clk 0:02:44]} 9. Nxe5 {[%clk 0:02:46]}  Nxe5 {[%clk 0:02:34]} 10. Rxe5 {[%clk 0:02:47]}  Nd7 {[%clk 0:02:09]} 11. Re1 {[%clk 0:02:47]}  Rb8 {[%clk 0:02:07]} 12. Nd2 {[%clk 0:02:41]}  b6 {[%clk 0:02:06]} 13. Nc4 {[%clk 0:02:41]}  Bb7 {[%clk 0:02:04]} 14. Bf4 {[%clk 0:02:41]}  e5 {[%clk 0:01:56]} 15. Nxe5 {[%clk 0:02:37]}  Nxe5 {[%clk 0:01:49]} 16. Bxb7 {[%clk 0:02:33]}  Rxb7 {[%clk 0:01:45]} 17. Bxe5 {[%clk 0:02:33]}  Bxe5 {[%clk 0:01:41]} 18. Rxe5 {[%clk 0:02:34]}  Qd4 {[%clk 0:01:41]} 19. Qe2 {[%clk 0:02:25]}  Qxb2 {[%clk 0:01:39]} 20. Re1 {[%clk 0:02:25]}  Qxa2 {[%clk 0:01:35]} 21. h4 {[%clk 0:02:25]}  Qb2 {[%clk 0:00:55]} 22. h5 {[%clk 0:02:22]}  Qd4 {[%clk 0:00:50]} 23. h6 {[%clk 0:02:21]}  a5 {[%clk 0:00:44]} 24. Re8 {[%clk 0:02:18]}  Qd6 {[%clk 0:00:25]} 25. c4 {[%clk 0:01:55]}  Rb8 {[%clk 0:00:20]} 26. Rxb8 {[%clk 0:01:47]}  Rxb8 {[%clk 0:00:21]} 27. Qe8+ {[%clk 0:01:47]}  Rxe8 {[%clk 0:00:21]} 28. Rxe8+ {[%clk 0:01:42]}  Qf8 {[%clk 0:00:21]} 29. Rxf8+ {[%clk 0:01:41]}  Kxf8 {[%clk 0:00:22]} 30. Kf1 {[%clk 0:01:38]}  a4 {[%clk 0:00:17]} 31. Ke2 {[%clk 0:01:38]}  a3 {[%clk 0:00:18]} 32. d4 {[%clk 0:01:30]}  a2 {[%clk 0:00:19]} 33. dxc5 {[%clk 0:01:30]}  a1=Q {[%clk 0:00:20]} 34. cxb6 {[%clk 0:01:30]}  Qb2+ {[%clk 0:00:19]} 35. Kd3 {[%clk 0:01:31]}  Qxb6 {[%clk 0:00:20]} 36. f4 {[%clk 0:01:31]}  Ke7 {[%clk 0:00:19]} 37. g4 {[%clk 0:01:31]}  Ke6 {[%clk 0:00:19]} 38. g5 {[%clk 0:01:31]}  Kf5 {[%clk 0:00:19]} 39. Kc3 {[%clk 0:01:31]}  Kxf4 {[%clk 0:00:18]} 40. Kd3 {[%clk 0:01:31]}  Kxg5 {[%clk 0:00:17]} 41. Ke4 {[%clk 0:01:31]}  Kxh6 {[%clk 0:00:17]} 42. Kf3 {[%clk 0:01:31]}  f5 {[%clk 0:00:17]} 43. Kg3 {[%clk 0:01:30]}  Qe3+ {[%clk 0:00:13]} 44. Kh4 {[%clk 0:01:30]}  Qf3 {[%clk 0:00:12]} 45. c5 {[%clk 0:01:29]}  Qg4# {[%clk 0:00:13]} 0-1


[Site "https://www.chess.com"]